bitfinex/quotes_BTCUSD_20250129
["timestamp","ask_amount","ask_price","bid_price","bid_amount"]
[1738118985613,0.00444373,101760.0,101750.0,1.16152006]
[1738118985811,0.00444373,101760.0,101750.0,1.24975322]
[1738118988823,0.00444373,101760.0,101750.0,1.21139982]
[1738118989295,0.00444373,101760.0,101750.0,1.12316666]
[1738118991858,0.00444373,101760.0,101750.0,1.13316666]
[1738119000537,0.00444373,101760.0,101750.0,1.05526666]
[1738119002016,0.00444373,101760.0,101750.0,0.89979854]
[1738119002637,0.00444373,101760.0,101750.0,0.92279854]
[1738119003099,0.00444373,101760.0,101750.0,0.76507854]
[1738119003313,0.30627485,101760.0,101750.0,0.63888454]
[1738119003508,0.30627485,101760.0,101750.0,0.62714668]
[1738119004340,0.30627485,101760.0,101750.0,0.71530842]
[1738119004574,0.23322673,101760.0,101750.0,0.71530842]
[1738119005338,0.23322673,101760.0,101750.0,0.6846472]
[1738119006798,0.23322673,101760.0,101750.0,0.6769272]
[1738119006929,0.23322673,101760.0,101750.0,0.6846072]
[1738119008040,0.23322673,101760.0,101750.0,0.59644546]
[1738119008258,0.23322673,101760.0,101750.0,0.58876546]
[1738119008467,0.35459184,101760.0,101750.0,0.58876546]
[1738119022737,0.61595695,101760.0,101750.0,0.58876546]
[1738119022942,0.60595695,101760.0,101750.0,0.58876546]
[1738119023117,0.49459184,101760.0,101750.0,0.58876546]
[1738119024196,0.24322673,101760.0,101750.0,0.58876546]
[1738119024555,0.23922673,101760.0,101750.0,0.58876546]
[1738119024758,0.24022673,101760.0,101750.0,0.58976546]
[1738119024968,0.23922673,101760.0,101750.0,0.58876546]
[1738119025373,0.35159184,101760.0,101750.0,0.58876546]
[1738119027563,0.24022673,101760.0,101750.0,0.58876546]
[1738119030836,0.23022673,101760.0,101750.0,0.69195946]
[1738119031250,0.24022673,101760.0,101750.0,0.69195946]
[1738119032526,0.24022673,101760.0,101750.0,0.58876546]
[1738119035304,0.24022673,101760.0,101750.0,0.69195946]
[1738119035565,0.23022673,101760.0,101750.0,0.69195946]
[1738119036041,0.10462673,101760.0,101750.0,0.69195946]
[1738119036478,0.00144373,101760.0,101750.0,0.69195946]
[1738119036681,0.00144373,101760.0,101750.0,0.72263385]
[1738119038649,0.00044373,101760.0,101750.0,0.72263385]
[1738119039209,0.00744373,101760.0,101750.0,1.13099896]
[1738119041756,0.00044373,101760.0,101750.0,1.14076458]
[1738119042126,0.00444373,101760.0,101750.0,1.14076458]
[1738119042336,0.00444373,101760.0,101750.0,1.22892632]
[1738119043160,0.00444373,101760.0,101750.0,1.24835958]
[1738119047217,0.00444373,101760.0,101750.0,1.25835958]
[1738119050599,0.00444373,101760.0,101750.0,1.25635958]
[1738119050773,0.00444373,101760.0,101750.0,1.06829447]
[1738119051426,0.00444373,101760.0,101750.0,0.98013273]
[1738119052284,0.00444373,101760.0,101750.0,1.09149784]
[1738119052484,0.00444373,101760.0,101750.0,0.98013273]
[1738119053034,0.00444373,101760.0,101750.0,1.09149784]
[1738119055810,0.00444373,101760.0,101750.0,1.18459784]
[1738119061424,0.00444373,101760.0,101750.0,1.19459784]
[1738119062353,0.00044373,101760.0,101750.0,1.30596295]
[1738119062864,0.00044373,101760.0,101750.0,1.40796295]
[1738119062865,7.3e-07,101760.0,101750.0,1.40796295]
[1738119063081,7.3e-07,101760.0,101750.0,1.40596295]
[1738119064049,0.00029883,101780.0,101770.0,0.273173]
[1738119064271,0.00029883,101780.0,101770.0,2.59393657]
[1738119065516,0.00229883,101780.0,101770.0,2.59393657]
[1738119066123,0.00229883,101780.0,101770.0,2.91593657]
[1738119067556,0.00229883,101780.0,101770.0,2.92602914]
[1738119069853,0.00229883,101780.0,101770.0,2.94529497]
[1738119071240,0.00029883,101780.0,101770.0,2.94529497]
[1738119071463,0.00029883,101780.0,101770.0,2.94729497]
[1738119071690,0.00029883,101780.0,101770.0,2.93729497]
[1738119071926,0.07749883,101780.0,101770.0,2.33754854]
[1738119072162,0.07749883,101780.0,101770.0,1.84254854]
[1738119072373,0.12249883,101780.0,101770.0,1.84254854]
[1738119072696,0.12249883,101780.0,101770.0,1.83045597]
[1738119073151,0.12349883,101780.0,101770.0,1.83045597]
[1738119074440,0.12249883,101780.0,101770.0,1.83045597]
[1738119074765,0.12649883,101780.0,101770.0,1.83045597]
[1738119078475,0.12649883,101780.0,101770.0,1.82245597]
[1738119078818,0.12649883,101780.0,101770.0,1.83045597]
[1738119080993,0.22966183,101780.0,101770.0,1.82245597]
[1738119081207,0.22966183,101780.0,101770.0,1.83049597]
[1738119081374,0.22966183,101780.0,101770.0,1.67738275]
[1738119081579,0.22966183,101780.0,101770.0,1.78055575]
[1738119085553,0.22966183,101780.0,101770.0,1.67734275]
[1738119085693,0.22966183,101780.0,101770.0,1.78051575]
[1738119086100,0.22966183,101780.0,101770.0,1.67734275]
[1738119086354,0.22966183,101780.0,101770.0,1.66934275]
[1738119086603,0.22966183,101780.0,101770.0,1.57103735]
[1738119086604,0.35102694,101780.0,101770.0,1.57103735]
[1738119086808,0.35102694,101780.0,101770.0,0.58854316]
[1738119088027,0.34702694,101780.0,101770.0,0.58854316]
[1738119088331,0.34802694,101780.0,101770.0,0.59154316]
[1738119088696,0.34702694,101780.0,101770.0,0.58854316]
[1738119089458,0.34902694,101780.0,101770.0,0.58854316]
[1738119091809,0.23766183,101780.0,101770.0,0.58854316]
[1738119092906,0.34902694,101780.0,101770.0,0.58854316]
[1738119093721,0.33902694,101780.0,101770.0,0.58854316]
[1738119094017,0.34902694,101780.0,101770.0,0.58854316]
[1738119100033,0.34868717,101780.0,101770.0,0.58854316]
[1738119101023,0.22732206,101780.0,101770.0,0.69171616]
[1738119102190,0.22532206,101780.0,101770.0,0.69171616]
[1738119104059,0.23532206,101780.0,101770.0,0.58854316]
[1738119104262,0.24232206,101780.0,101770.0,0.58854316]
[1738119105054,0.35368717,101780.0,101770.0,0.58854316]
[1738119106068,0.34668717,101780.0,101770.0,0.58854316]
[1738119107577,0.34768717,101780.0,101770.0,0.58854316]
[1738119110435,0.34768717,101780.0,101770.0,0.58868546]
[1738119110579,0.347986,101780.0,101770.0,0.58868546]
[1738119110778,0.346986,101780.0,101770.0,0.58868546]
[1738119111041,0.350986,101780.0,101770.0,0.58868546]
[1738119112745,0.490986,101780.0,101770.0,0.58868546]
[1738119113808,0.486986,101780.0,101770.0,0.58868546]
[1738119114257,0.487986,101780.0,101770.0,0.58868546]
[1738119114458,0.91374276,101780.0,101770.0,0.4914423]
[1738119114661,1.02170615,101780.0,101770.0,0.4914423]
[1738119116650,0.91377455,101780.0,101770.0,0.4914423]
[1738119121914,0.93340024,101780.0,101770.0,0.4914423]
[1738119125443,0.83604348,101780.0,101770.0,0.4914423]
[1738119126370,0.81641779,101780.0,101770.0,0.4914423]
[1738119127534,0.81641779,101780.0,101770.0,0.58868546]
[1738119130632,0.77141779,101780.0,101770.0,0.58868546]
[1738119131391,0.69425873,101780.0,101770.0,0.58868546]
[1738119131602,0.59286183,101780.0,101770.0,0.58868546]
[1738119131827,0.58286183,101780.0,101770.0,0.58868546]
[1738119132452,0.69425873,101780.0,101770.0,0.58868546]
[1738119133418,0.70425873,101780.0,101770.0,0.58868546]
[1738119133616,0.43286183,101780.0,101770.0,0.58868546]
[1738119133828,0.10446183,101780.0,101770.0,0.69185846]
[1738119134860,0.00129883,101780.0,101770.0,0.69185846]
[1738119135064,0.00129883,101780.0,101770.0,0.76685846]
[1738119136429,0.00029883,101780.0,101770.0,0.76685846]
[1738119136667,0.00129883,101780.0,101770.0,0.76685846]
[1738119137971,0.00029883,101780.0,101770.0,0.76685846]
[1738119138377,0.11046183,101780.0,101770.0,0.76685846]
[1738119140455,0.11046183,101780.0,101770.0,0.69185846]
[1738119141811,0.00729883,101780.0,101770.0,0.69185846]
[1738119143348,0.11046183,101780.0,101770.0,0.69185846]
[1738119145023,0.11046183,101780.0,101770.0,0.58868546]
[1738119145229,0.11046183,101780.0,101770.0,0.59664546]
[1738119145563,0.23185873,101780.0,101770.0,0.59664546]
[1738119145787,0.12046183,101780.0,101770.0,0.59664546]
[1738119146230,0.23185873,101780.0,101770.0,0.58868546]
[1738119146438,0.49785873,101780.0,101770.0,0.58868546]
[1738119146642,0.49085873,101780.0,101770.0,0.58868546]
[1738119147112,0.34085873,101780.0,101770.0,0.58968546]
[1738119147313,0.34085873,101780.0,101770.0,0.58868546]
[1738119147534,0.34285873,101780.0,101770.0,0.58868546]
[1738119150227,0.34285873,101780.0,101770.0,0.4914423]
[1738119150228,0.92839993,101780.0,101770.0,0.4914423]
[1738119150601,0.83104317,101780.0,101770.0,0.4914423]
[1738119158079,0.68104317,101780.0,101770.0,0.4914423]
[1738119158593,0.71580923,101780.0,101770.0,0.4914423]
[1738119200336,0.64272775,101780.0,101770.0,0.4914423]
[1738119201011,0.71580923,101780.0,101770.0,0.4914423]
[1738119210506,0.81316599,101780.0,101770.0,0.4914423]
[1738119212455,0.71580923,101780.0,101770.0,0.4914423]
[1738119212653,0.64272775,101780.0,101770.0,0.4914423]
[1738119212860,0.71580923,101780.0,101770.0,0.4914423]
[1738119220801,0.86580923,101780.0,101770.0,0.4914423]
[1738119221371,0.79272775,101780.0,101770.0,0.4914423]
[1738119221545,0.86580923,101780.0,101770.0,0.4914423]
[1738119222001,0.79272775,101780.0,101770.0,0.4914423]
[1738119222218,0.86580923,101780.0,101770.0,0.4914423]
[1738119225627,0.79272775,101780.0,101770.0,0.4914423]
[1738119225849,0.86580923,101780.0,101770.0,0.4914423]
[1738119226089,0.79272775,101780.0,101770.0,0.4914423]
[1738119229263,0.86580923,101780.0,101770.0,0.4914423]
[1738119229705,0.96316599,101780.0,101770.0,0.4914423]
[1738119230860,0.86580923,101780.0,101770.0,0.4914423]
[1738119231084,0.96189071,101780.0,101770.0,0.4914423]
[1738119232914,0.95989071,101780.0,101770.0,0.4914423]
[1738119233070,0.96089071,101780.0,101770.0,0.4944423]
[1738119235177,0.98067668,101780.0,101770.0,0.4944423]
[1738119235377,1.07803344,101780.0,101770.0,0.4944423]
[1738119238589,1.07693346,101780.0,101770.0,0.4944423]
[1738119240643,1.09693346,101780.0,101770.0,0.4944423]
[1738119241771,1.02385198,101780.0,101770.0,0.4944423]
[1738119242655,1.00406601,101780.0,101770.0,0.4944423]
[1738119243772,0.81800925,101780.0,101770.0,0.4944423]
[1738119247785,0.81830808,101780.0,101770.0,0.4944423]
[1738119287046,0.6649266,101780.0,101770.0,0.4944423]
[1738119287253,0.73800808,101780.0,101770.0,0.4944423]
[1738119290521,0.73800808,101780.0,101770.0,0.59168546]
[1738119297878,0.40960808,101780.0,101770.0,0.59168546]
[1738119300623,0.39982364,101780.0,101770.0,0.59168546]
[1738119300761,0.32674216,101780.0,101770.0,0.59168546]
[1738119301611,0.39982364,101780.0,101770.0,0.59168546]
[1738119303555,0.32674216,101780.0,101770.0,0.66778546]
[1738119307939,0.32674216,101780.0,101770.0,0.59168546]
[1738119312157,0.39982364,101780.0,101770.0,0.59168546]
[1738119312352,0.32674216,101780.0,101770.0,0.59168546]
[1738119312901,0.39982364,101780.0,101770.0,0.59168546]
[1738119313035,0.32674216,101780.0,101770.0,0.59168546]
[1738119314308,0.47572364,101780.0,101770.0,0.59168546]
[1738119316785,0.57180512,101780.0,101770.0,0.4944423]
[1738119316991,0.94670512,101780.0,101770.0,0.4944423]
[1738119317201,0.97670512,101780.0,101770.0,0.4944423]
[1738119317411,0.97670512,101780.0,101770.0,0.0031423]
[1738119317620,1.07394828,101780.0,101770.0,0.0031423]
[1738119317821,1.17130504,101780.0,101770.0,0.0031423]
[1738119320850,1.19136577,101780.0,101770.0,0.0031423]
[1738119321254,1.18136577,101780.0,101770.0,0.0031423]
[1738119321438,1.19136577,101780.0,101770.0,0.0031423]
[1738119321637,0.86296577,101780.0,101770.0,0.0031423]
[1738119324580,0.84296577,101780.0,101770.0,0.0031423]
[1738119324779,0.86296577,101780.0,101770.0,0.0031423]
[1738119325995,0.54522364,101780.0,101770.0,0.0031423]
[1738119335216,0.24982364,101780.0,101770.0,0.10038546]
[1738119335431,0.17674216,101780.0,101770.0,0.10038546]
[1738119335637,0.25366068,101780.0,101770.0,0.17808546]
[1738119335818,0.32674216,101780.0,101770.0,0.17808546]
[1738119336562,0.17674216,101780.0,101770.0,0.17808546]
[1738119336815,0.32674216,101780.0,101770.0,0.17808546]
[1738119337043,0.17674216,101780.0,101770.0,0.17808546]
[1738119337552,0.32674216,101780.0,101770.0,0.17808546]
[1738119338325,0.33674216,101780.0,101770.0,0.17808546]
[1738119338789,0.32674216,101780.0,101770.0,0.17808546]
[1738119339650,0.54712364,101780.0,101770.0,0.10038546]
[1738119341580,0.62020512,101780.0,101770.0,0.0031423]
[1738119345430,0.94860512,101780.0,101770.0,0.0031423]
[1738119347758,0.95860512,101780.0,101770.0,0.0031423]
[1738119351377,0.63020512,101780.0,101770.0,0.0031423]
[1738119352062,0.54712364,101780.0,101770.0,0.0031423]
[1738119352304,0.55105764,101780.0,101770.0,0.0031423]
[1738119352801,0.50605764,101780.0,101770.0,0.0031423]
[1738119354018,0.42675764,101780.0,101770.0,0.0031423]
[1738119357903,0.42675764,101780.0,101770.0,0.10038546]
[1738119358479,0.33067616,101780.0,101770.0,0.10038546]
[1738119359236,0.32674216,101780.0,101770.0,0.10038546]
[1738119360552,0.25366068,101780.0,101770.0,0.10038546]
[1738119360705,0.36500882,101780.0,101770.0,0.10038546]
[1738119365509,0.25366068,101780.0,101770.0,0.10038546]
[1738119372652,0.15129883,101780.0,101770.0,0.21214095]
[1738119372981,0.00129883,101780.0,101770.0,0.33835846]
[1738119373995,0.00129883,101780.0,101770.0,0.82963846]
[1738119378049,0.00129883,101780.0,101770.0,0.9409866]
[1738119378480,0.00129883,101780.0,101770.0,0.95104451]
[1738119378761,0.00129883,101780.0,101770.0,0.85982122]
[1738119379331,0.00029883,101780.0,101770.0,0.85682122]
[1738119379530,0.00729883,101780.0,101770.0,0.85682122]
[1738119380617,0.00729883,101780.0,101770.0,1.05876547]
[1738119381502,0.00729883,101780.0,101770.0,1.06876547]
[1738119382651,0.00729883,101780.0,101770.0,1.10700446]
[1738119384135,0.00729883,101780.0,101770.0,1.19521602]
[1738119384356,0.00029883,101780.0,101770.0,1.19521602]
[1738119384741,0.00529883,101780.0,101770.0,1.19621602]
[1738119395784,0.00529883,101780.0,101770.0,1.10800446]
[1738119396603,0.00529883,101780.0,101770.0,1.25800446]
[1738119396786,0.00029904,101790.0,101780.0,0.29511771]
[1738119397009,0.00029904,101790.0,101780.0,2.38310161]
[1738119397861,0.00029904,101790.0,101780.0,2.53310161]
[1738119398203,0.00829904,101790.0,101780.0,2.53410161]
[1738119399011,0.00029904,101790.0,101780.0,2.53310161]
[1738119399224,0.00529904,101790.0,101780.0,2.53410161]
[1738119400321,0.00529904,101790.0,101780.0,2.58250161]
[1738119402082,0.00529904,101790.0,101780.0,2.3421469]
[1738119403441,0.00529904,101790.0,101780.0,2.43035846]
[1738119404666,0.00529904,101790.0,101780.0,2.50337066]
[1738119406835,0.00529904,101790.0,101780.0,2.4151591]
[1738119411109,0.00529904,101790.0,101780.0,2.4881713]
[1738119411513,0.00529904,101790.0,101780.0,2.57638286]
[1738119413424,0.00529904,101790.0,101780.0,2.50337066]
[1738119419414,0.00529904,101790.0,101780.0,2.50351296]
[1738119421583,0.00529904,101790.0,101780.0,2.4153014]
[1738119427045,0.00529904,101790.0,101780.0,0.94642589]
[1738119431236,0.00529904,101790.0,101780.0,0.95402589]
[1738119443211,0.00529904,101790.0,101780.0,1.02703809]
[1738119443412,0.00529904,101790.0,101780.0,1.34903809]
[1738119446419,0.00529904,101790.0,101780.0,1.27602589]
[1738119446808,0.00529904,101790.0,101780.0,1.34903809]
[1738119446958,0.00529904,101790.0,101780.0,1.27602589]
[1738119448030,0.00529904,101790.0,101780.0,1.34903809]
[1738119448234,0.00529904,101790.0,101780.0,1.27602589]
[1738119451659,0.00529904,101790.0,101780.0,1.34903809]
[1738119452602,0.00529904,101790.0,101780.0,1.27602589]
[1738119454600,0.08329904,101790.0,101780.0,1.27602589]
[1738119456695,0.12959904,101790.0,101780.0,1.05301369]
[1738119456904,0.12959904,101790.0,101780.0,1.12602589]
[1738119458724,0.12959904,101790.0,101780.0,1.05301369]
[1738119461370,0.12959904,101790.0,101780.0,0.73101369]
[1738119463435,0.12959904,101790.0,101780.0,0.80402589]
[1738119463945,0.12959904,101790.0,101780.0,0.73101369]
[1738119464460,0.12959904,101790.0,101780.0,0.80402589]
[1738119467988,0.08329904,101790.0,101780.0,0.80402589]
[1738119469927,0.08329904,101790.0,101780.0,0.87703809]
[1738119470138,0.00529904,101790.0,101780.0,0.87703809]
[1738119473298,0.00529904,101790.0,101780.0,1.19903809]
[1738119474838,0.00529904,101790.0,101780.0,1.34903809]
[1738119475192,0.07639904,101800.0,101790.0,0.15]
[1738119475322,0.07654424,101800.0,101790.0,2.51338089]
[1738119475681,0.07654424,101800.0,101790.0,2.5123987]
[1738119476658,0.08354424,101800.0,101790.0,2.5133987]
[1738119480358,0.08354424,101800.0,101790.0,2.52306067]
[1738119482213,0.08354424,101800.0,101790.0,2.52206067]
[1738119482364,0.07654424,101800.0,101790.0,2.52206067]
[1738119482569,0.00144424,101800.0,101790.0,2.52206067]
[1738119483194,0.00144424,101800.0,101790.0,2.91707287]
[1738119483373,0.00144424,101800.0,101790.0,2.84406067]
[1738119483575,0.00144424,101800.0,101790.0,2.86373138]
[1738119483973,0.00044424,101800.0,101790.0,2.86373138]
[1738119484477,0.00044424,101800.0,101790.0,2.86573138]
[1738119485488,0.00044424,101800.0,101790.0,3.03114358]
[1738119485695,0.00044424,101800.0,101790.0,3.07784358]
[1738119485903,0.00044424,101800.0,101790.0,3.00483138]
[1738119486109,0.00044424,101800.0,101790.0,3.00683138]
[1738119487106,0.00044424,101800.0,101790.0,2.92443138]
[1738119487915,0.00044424,101800.0,101790.0,2.60243138]
[1738119489387,0.00044424,101800.0,101790.0,2.60257368]
[1738119489800,0.00044424,101800.0,101790.0,2.55387368]
[1738119490010,0.00044424,101800.0,101790.0,2.54387368]
[1738119490214,0.07954424,101800.0,101790.0,2.54387368]
[1738119490384,0.07954424,101800.0,101790.0,2.55147368]
[1738119491017,0.07922106,101800.0,101790.0,2.55147368]
[1738119491492,0.07922106,101800.0,101790.0,2.47846148]
[1738119491708,0.07922106,101800.0,101790.0,2.47086148]
[1738119491919,0.12692106,101800.0,101790.0,1.99208016]
[1738119493026,0.12692106,101800.0,101790.0,2.06509236]
[1738119493296,0.12692106,101800.0,101790.0,1.99208016]
[1738119494916,0.12692106,101800.0,101790.0,2.55147368]
[1738119495256,0.12692106,101800.0,101790.0,2.63970129]
[1738119496044,0.12692106,101800.0,101790.0,2.63770129]
[1738119496522,0.12792106,101800.0,101790.0,2.63770129]
[1738119500104,0.08022106,101800.0,101790.0,2.63770129]
[1738119500726,0.08036336,101800.0,101790.0,2.63770129]
[1738119502985,0.00126336,101800.0,101790.0,2.63770129]
[1738119503884,0.00126336,101800.0,101790.0,2.54947368]
[1738119506029,0.00126336,101800.0,101790.0,1.08059817]
[1738119507090,0.00026336,101800.0,101790.0,1.08059817]
[1738119507450,0.00026336,101800.0,101790.0,1.28341037]
[1738119511707,0.00026336,101800.0,101790.0,2.13931037]
[1738119513852,0.00026336,101800.0,101790.0,2.17231037]
[1738119516969,0.00026336,101800.0,101790.0,2.18231037]
[1738119517125,0.00026336,101800.0,101790.0,2.25532257]
[1738119517308,0.00029904,101810.0,101800.0,0.4320796]
[1738119517539,0.00029904,101810.0,101800.0,2.5199635]
[1738119517933,0.00029904,101810.0,101800.0,2.6799635]
[1738119518581,0.00129904,101810.0,101800.0,2.6799635]
[1738119519963,0.00029904,101810.0,101800.0,2.6799635]
[1738119520167,0.00029904,101810.0,101800.0,2.6819635]
[1738119520743,0.00029904,101810.0,101800.0,3.0039635]
[1738119521684,0.00029904,101810.0,101800.0,2.9309513]
[1738119522416,0.00029904,101810.0,101800.0,3.0039635]
[1738119522621,0.00029904,101810.0,101800.0,2.9309513]
[1738119523596,0.00029904,101810.0,101800.0,2.8540513]
[1738119523893,3.875e-05,101810.0,101800.0,2.8540513]
[1738119525574,0.07553875,101810.0,101800.0,2.7380391]
[1738119525684,0.07553875,101810.0,101800.0,2.7458791]
[1738119530894,0.07553875,101810.0,101800.0,2.4160391]
[1738119531146,0.12473875,101810.0,101800.0,2.3508669]
[1738119531346,0.12473875,101810.0,101800.0,2.4238791]
[1738119531487,0.12473875,101810.0,101800.0,2.4160391]
[1738119531690,0.12473875,101810.0,101800.0,2.4238391]
[1738119531903,0.12473875,101810.0,101800.0,2.4218391]
[1738119532217,0.12573875,101810.0,101800.0,2.4218391]
[1738119533856,0.12573875,101810.0,101800.0,2.50996062]
[1738119535513,0.12573875,101810.0,101800.0,2.51025945]
[1738119537283,0.12573875,101810.0,101800.0,2.58327165]
[1738119540405,0.12573875,101810.0,101800.0,2.51025945]
[1738119542114,0.12573875,101810.0,101800.0,2.58327165]
[1738119542316,0.12573875,101810.0,101800.0,2.51025945]
[1738119547577,0.12573875,101810.0,101800.0,1.04138394]
[1738119548892,0.12573875,101810.0,101800.0,0.95326242]
[1738119549692,0.12573875,101810.0,101800.0,0.80326242]
[1738119555034,0.12573875,101810.0,101800.0,1.02627462]
[1738119555233,0.00103875,101810.0,101800.0,1.02627462]
[1738119555458,0.00103875,101810.0,101800.0,1.34827462]
[1738119555707,0.00103875,101810.0,101800.0,1.53148682]
[1738119555913,0.00103875,101810.0,101800.0,1.54148682]
[1738119557318,0.00103875,101810.0,101800.0,1.46847462]
[1738119558104,0.00103875,101810.0,101800.0,1.54148682]
[1738119558942,0.00103875,101810.0,101800.0,1.46847462]
[1738119560388,0.00103875,101810.0,101800.0,1.54148682]
[1738119561109,0.00103875,101810.0,101800.0,1.46847462]
[1738119563056,0.00103875,101810.0,101800.0,1.45847462]
[1738119563253,0.00103875,101810.0,101800.0,1.46847462]
[1738119564770,0.09223875,101830.0,101800.0,1.39127462]
[1738119564967,0.09272264,101830.0,101820.0,0.42337836]
[1738119565162,0.09272264,101830.0,101820.0,2.02580538]
[1738119565348,0.09272264,101830.0,101820.0,2.5121867]
[1738119566184,0.09272264,101830.0,101820.0,1.95279318]
[1738119566359,0.09272264,101830.0,101820.0,1.81039318]
[1738119566697,0.09372264,101830.0,101820.0,1.81039318]
[1738119566897,0.09372264,101830.0,101820.0,1.80279318]
[1738119567097,0.09372264,101830.0,101820.0,1.81039318]
[1738119567958,0.09372264,101830.0,101820.0,1.80279318]
[1738119568170,0.09372264,101830.0,101820.0,1.81039318]
[1738119568357,0.09272264,101830.0,101820.0,1.81039318]
[1738119568590,0.09772264,101830.0,101820.0,1.81139318]
[1738119568792,0.09772264,101830.0,101820.0,1.80379318]
[1738119568996,0.09772264,101830.0,101820.0,1.81139318]
[1738119569618,0.09772264,101830.0,101820.0,1.89959703]
[1738119569818,0.09786494,101830.0,101820.0,1.89959703]
[1738119570076,0.09786494,101830.0,101820.0,1.91935688]
[1738119571958,0.09786494,101830.0,101820.0,2.4787504]
[1738119573370,0.09786494,101830.0,101820.0,1.91935688]
[1738119581562,0.09786494,101830.0,101820.0,1.9196555]
[1738119591016,0.20097794,101830.0,101820.0,1.8089325]
[1738119591221,0.21097794,101830.0,101820.0,1.9196555]
[1738119594011,0.21097794,101830.0,101820.0,1.83145165]
[1738119595278,0.21097794,101830.0,101820.0,0.84895746]
[1738119601094,0.20097794,101830.0,101820.0,0.84895746]
[1738119601324,0.21097794,101830.0,101820.0,0.84895746]
[1738119601907,0.21097794,101830.0,101820.0,0.93716131]
[1738119602071,0.20097794,101830.0,101820.0,0.93716131]
[1738119602275,0.21097794,101830.0,101820.0,0.93716131]
[1738119603500,0.28399014,101830.0,101820.0,0.80667846]
[1738119603705,0.28399014,101830.0,101820.0,0.67780563]
[1738119603706,0.75239014,101830.0,101820.0,0.67780563]
[1738119603909,0.82540234,101830.0,101820.0,0.67780563]
[1738119604119,0.75239014,101830.0,101820.0,0.67780563]
[1738119605009,0.75239014,101830.0,101820.0,0.58960178]
[1738119606890,0.42399014,101830.0,101820.0,0.58960178]
[1738119607865,0.44699014,101830.0,101820.0,0.58960178]
[1738119608889,0.44199014,101830.0,101820.0,0.58860178]
[1738119609099,0.44299014,101830.0,101820.0,0.58860178]
[1738119622092,0.34697794,101830.0,101820.0,0.58860178]
[1738119622500,0.33653919,101830.0,101820.0,0.58860178]
[1738119622701,0.11473919,101830.0,101820.0,0.69172478]
[1738119622909,0.00162619,101830.0,101820.0,0.76473698]
[1738119623131,0.00162619,101830.0,101820.0,0.86301548]
[1738119623546,0.00162619,101830.0,101820.0,0.79000328]
[1738119626440,0.00162619,101830.0,101820.0,0.80963582]
[1738119629458,0.00162619,101830.0,101820.0,1.086407]
[1738119629663,0.00162619,101830.0,101820.0,1.1170024]
[1738119630509,0.00062619,101830.0,101820.0,1.1170024]
[1738119630914,0.00662619,101830.0,101820.0,1.0449902]
[1738119631331,0.00662619,101830.0,101820.0,1.1180024]
[1738119632687,0.00662619,101830.0,101820.0,1.2680024]
[1738119634962,0.00662619,101830.0,101820.0,1.35620625]
[1738119635589,0.00062619,101830.0,101820.0,1.67720625]
[1738119635790,0.00062619,101830.0,101820.0,1.78321845]
[1738119635954,0.00062619,101830.0,101820.0,1.71020625]
[1738119637081,0.00062619,101830.0,101820.0,2.42711845]
[1738119637291,1.9e-07,101830.0,101820.0,2.42711845]
[1738119638390,0.00029904,101850.0,101840.0,0.238002]
[1738119638594,0.00044415,101850.0,101840.0,2.99555777]
[1738119638742,0.00029904,101860.0,101850.0,0.253092]
[1738119638944,0.00029904,101860.0,101850.0,1.14277496]
[1738119639336,0.00029904,101860.0,101850.0,1.11217956]
[1738119639961,0.00329904,101860.0,101850.0,1.11217956]
[1738119640382,0.00329904,101860.0,101850.0,1.14265208]
[1738119640605,0.00329904,101860.0,101850.0,1.21873466]
[1738119641533,0.00329904,101860.0,101850.0,1.25173466]
[1738119641736,0.00329904,101860.0,101850.0,1.58373466]
[1738119642140,0.00029904,101860.0,101850.0,1.58373466]
[1738119642957,0.00029904,101860.0,101850.0,1.6715518]
[1738119643711,0.00029904,101860.0,101850.0,2.2054518]
[1738119644774,0.00029904,101860.0,101850.0,2.22484668]
[1738119645398,0.00029904,101860.0,101850.0,2.21484668]
[1738119645646,0.00029904,101860.0,101850.0,2.23244668]
[1738119646303,0.00029904,101860.0,101850.0,2.23230032]
[1738119646566,0.00029904,101860.0,101850.0,2.24230032]
[1738119646728,0.00029904,101860.0,101850.0,2.22470032]
[1738119646970,0.00029904,101860.0,101850.0,2.08064683]
[1738119647207,0.00029904,101860.0,101850.0,2.05777431]
[1738119648018,0.00029904,101860.0,101850.0,2.1688278]
[1738119648480,0.00029904,101860.0,101850.0,1.6349278]
[1738119649481,0.00029904,101860.0,101850.0,1.6273278]
[1738119649678,0.00029904,101860.0,101850.0,1.55711066]
[1738119649909,0.00029904,101860.0,101850.0,1.59011066]
[1738119650111,0.00029904,101860.0,101850.0,1.62049969]
[1738119650938,0.00029904,101860.0,101850.0,1.72049969]
[1738119651187,4e-08,101860.0,101850.0,1.72049969]
[1738119651660,0.00029904,101870.0,101860.0,0.53673549]
[1738119651923,0.00029904,101870.0,101860.0,2.69193186]
[1738119652173,0.00029904,101870.0,101860.0,2.72232089]
[1738119652375,4e-08,101870.0,101860.0,2.83337438]
[1738119652768,0.08116019,101900.0,101870.0,0.01]
[1738119652921,0.08116019,101900.0,101890.0,0.31134865]
[1738119652922,0.08130524,101900.0,101890.0,0.31134865]
[1738119653119,0.00014505,101900.0,101890.0,2.51914646]
[1738119653322,0.00014505,101900.0,101890.0,2.52678646]
[1738119653940,0.00014505,101900.0,101890.0,2.41573297]
[1738119654340,0.00014505,101900.0,101890.0,2.52678646]
[1738119655335,0.00014505,101900.0,101890.0,2.41573297]
[1738119655861,0.00014505,101900.0,101890.0,2.52678646]
[1738119655862,0.07914505,101900.0,101890.0,2.52678646]
[1738119656633,0.07914505,101900.0,101890.0,2.54635782]
[1738119657019,0.00314505,101900.0,101890.0,2.54635782]
[1738119657262,0.00314505,101900.0,101890.0,2.86835782]
[1738119657475,0.00314505,101900.0,101890.0,2.89875867]
[1738119657984,0.00314505,101900.0,101890.0,3.04805867]
[1738119658188,0.00314505,101900.0,101890.0,3.05805867]
[1738119658903,0.07699904,101920.0,101910.0,0.103032]
[1738119659109,0.08699904,101920.0,101910.0,1.77158555]
[1738119659294,0.23732004,101920.0,101910.0,1.77158555]
[1738119659490,0.23732004,101920.0,101910.0,1.66855355]
[1738119659731,0.23732004,101920.0,101910.0,1.57036735]
[1738119660731,0.23832004,101920.0,101910.0,1.57036735]
[1738119660934,0.26748955,101920.0,101910.0,1.57036735]
[1738119662197,0.23832004,101920.0,101910.0,1.57036735]
[1738119667267,0.22832004,101920.0,101910.0,1.57036735]
[1738119667491,0.23832004,101920.0,101910.0,1.57036735]
[1738119671577,0.23832004,101920.0,101910.0,1.68095935]
[1738119671789,0.23832004,101920.0,101910.0,1.77915225]
[1738119672428,0.23832004,101920.0,101910.0,1.80973184]
[1738119673137,0.23832004,101920.0,101910.0,1.77915225]
[1738119673341,0.22832004,101920.0,101910.0,1.809741]
[1738119673470,0.23832004,101920.0,101910.0,1.809741]
[1738119675276,0.23832004,101920.0,101910.0,1.81003962]
[1738119675412,0.07799904,101920.0,101910.0,1.81003962]
[1738119675613,0.00129904,101920.0,101910.0,2.40747443]
[1738119675826,0.00129904,101920.0,101910.0,2.29642094]
[1738119680621,0.00129904,101920.0,101910.0,1.81003962]
[1738119680840,0.18692004,101920.0,101910.0,1.69944762]
[1738119681011,0.35517353,101920.0,101910.0,1.67649887]